bitfinex-derivatives/quotes_ETHF0:USTF0_20250928
["timestamp","ask_amount","ask_price","bid_price","bid_amount"]
[1759069663864,1.7729,4025.0,4024.3,3.6806]
[1759069663865,0.44705,4024.6,4024.3,3.6806]
[1759069664061,1.1293,4024.4,4024.3,3.2078]
[1759069664465,1.13134263,4024.4,4024.3,0.00179503]
[1759069665868,10.48134263,4024.4,4024.3,0.00179503]
[1759069666560,1.1293,4023.6,4023.5,0.4728]
[1759069666767,0.8126,4024.0,4023.9,0.6452]
[1759069666958,1.0646,4024.0,4023.9,1.118]
[1759069667568,1.3813,4024.0,4023.9,1.12063187]
[1759069668162,1.3813,4024.0,4023.9,0.78313187]
[1759069669161,1.5779,4024.0,4023.9,0.31033187]
[1759069669360,1.5779,4024.0,4023.3,3.9883]
[1759069669361,1.1293,4023.4,4023.3,3.9883]
[1759069669670,1.3813,4023.4,4023.3,3.9883]
[1759069670271,1.3813,4023.4,4023.3,3.5155]
[1759069670473,1.3813,4023.4,4023.3,3.51781447]
[1759069670769,1.3813,4023.4,4023.3,3.21011447]
[1759069670963,1.3813,4023.4,4023.3,3.99061447]
[1759069671365,1.3813,4023.4,4023.3,4.32811447]
[1759069671671,5.3013,4023.4,4023.3,4.32811447]
[1759069672064,5.3013,4023.4,4023.3,3.99061447]
[1759069672459,5.3013,4023.4,4023.3,3.68291447]
[1759069672673,9.8513,4023.4,4023.3,3.99061447]
[1759069673272,9.8513,4023.4,4023.3,3.21011447]
[1759069673665,9.8513,4023.4,4023.3,3.99601447]
[1759069674170,3.6813,4023.4,4023.3,4.32161447]
[1759069675071,1.0913,4023.9,4023.8,1.1373]
[1759069675275,3.0633,4023.9,4023.8,1.1373]
[1759069678173,1.3433,4023.9,4023.8,1.1373]
[1759069678377,9.1433,4023.9,4023.8,1.1373]
[1759069679071,0.44713,4023.8,4023.4,0.44717]
[1759069679374,1.0913,4023.6,4023.5,0.8117]
[1759069680586,1.0913,4023.6,4023.5,0.3335]
[1759069680783,0.6574,4023.5,4023.3,3.68831447]
[1759069681074,1.3433,4023.4,4023.3,3.21011447]
[1759069681275,9.2533,4023.4,4023.3,3.21011447]
[1759069681672,9.2533,4023.4,4023.3,0.00231447]
[1759069682867,14.2533,4023.4,4023.3,0.00231447]
[1759069683178,14.2533,4023.4,4022.7,4.0195]
[1759069683179,1.53854,4022.8,4022.7,4.0195]
[1759069683479,1.3433,4022.8,4022.7,4.0195]
[1759069684073,1.3433,4022.8,4022.7,4.34710309]
[1759069684780,1.3433,4022.8,4022.7,0.00200309]
[1759069685172,1.3433,4022.8,4022.7,0.81370309]
[1759069686175,1.3433,4022.8,4022.7,0.00200309]
[1759069686571,1.3433,4022.8,4022.7,0.81370309]
[1759069687276,1.3433,4022.8,4022.7,1.13930309]
[1759069687870,0.8854,4022.8,4022.7,1.13930309]
[1759069688073,1.3433,4022.8,4022.7,1.13930309]
[1759069689874,2.8433,4022.8,4022.7,0.00200309]
[1759069690075,10.9233,4022.8,4022.7,0.00200309]
[1759069690475,1.0913,4022.3,4022.2,3.2078]
[1759069690674,0.7689,4021.8,4021.7,4.3147]
[1759069690878,1.0209,4021.8,4021.7,4.3147]
[1759069691479,1.3487,4021.8,4021.7,4.31784731]
[1759069692180,1.78696383,4023.2,4021.7,4.31784731]
[1759069692181,0.4594,4022.8,4022.5,0.5021]
[1759069692386,1.79595,4022.7,4022.6,1.1069]
[1759069692577,9.44595,4022.7,4022.6,1.1069]
[1759069692986,9.44595,4022.7,4022.6,0.7993]
[1759069693181,0.6373,4022.5,4022.4,1.1069]
[1759069693382,38.789,4023.3,4022.8,1.1069]
[1759069693583,4.4498,4022.9,4022.8,1.1069]
[1759069693780,4.7593,4022.9,4022.8,1.1069]
[1759069694484,4.9667,4022.9,4022.8,1.1069]
[1759069694679,4.8351,4022.9,4022.8,1.1069]
[1759069694886,4.7593,4022.9,4022.8,1.1069]
[1759069695286,3.7693,4022.9,4022.8,1.1069]
[1759069696682,4.2287,4022.9,4022.8,1.1069]
[1759069697587,4.5565,4022.9,4022.8,1.1069]
[1759069697782,0.252,4022.9,4022.8,1.1069]
[1759069697982,4.75167,4023.5,4023.4,0.3076]
[1759069698287,6.95367,4023.5,4023.4,0.3076]
[1759069698487,7.14527,4023.5,4023.4,0.3076]
[1759069699981,0.75669,4023.3,4023.2,0.3076]
[1759069700183,7.79589,4023.3,4023.2,0.3076]
[1759069700690,7.3487,4023.3,4023.2,0.3076]
[1759069700885,7.79589,4023.3,4023.0,0.4781]
[1759069701191,1.0967,4023.2,4023.1,0.7857]
[1759069701384,3.0667,4023.2,4023.1,0.7857]
[1759069701583,3.0667,4023.2,4023.1,1.1069]
[1759069701987,1.0967,4023.2,4023.1,1.1069]
[1759069702989,0.252,4023.3,4023.2,0.4472]
[1759069703192,0.252,4023.3,4023.2,1.5541]
[1759069703392,0.5615,4023.3,4023.2,1.5541]
[1759069703695,1.0109,4023.3,4023.2,1.5541]
[1759069705586,3.2078,4023.5,4023.3,0.44719]
[1759069705796,3.5182,4023.5,4023.4,1.55407]
[1759069705988,3.4598,4023.5,4023.4,1.55407]
[1759069707497,3.7702,4023.5,4023.4,1.55407]
[1759069709492,3.4598,4023.5,4023.4,1.55407]
[1759069711698,3.7702,4023.5,4023.4,1.55407]
[1759069711889,3.5182,4023.5,4023.4,1.55407]
[1759069712088,3.7702,4023.5,4023.4,1.55407]
[1759069712698,4.2196,4023.5,4023.4,1.55407]
[1759069713903,3.9676,4023.5,4023.4,1.55407]
[1759069714096,4.2196,4023.5,4023.4,1.55407]
[1759069715897,4.5298,4023.5,4023.4,1.55407]
[1759069722205,4.2778,4023.5,4023.4,1.55407]
[1759069722402,4.5298,4023.5,4023.4,1.55407]
[1759069723401,0.1945,4024.0,4023.7,1.06714]
[1759069723402,0.7598,4023.8,4023.7,1.06714]
[1759069723704,0.7598,4023.8,4023.7,1.55404]
[1759069723705,1.322,4023.8,4023.7,1.55404]
[1759069729207,1.07,4023.8,4023.7,1.55404]
[1759069729502,1.322,4023.8,4023.7,1.55404]
[1759069734308,1.07,4023.8,4023.7,1.55404]
[1759069734612,1.322,4023.8,4023.7,1.55404]
[1759069739110,1.322,4023.8,4023.7,1.1069]
[1759069739314,1.322,4023.8,4023.7,1.55404]
[1759069742714,1.322,4023.8,4023.7,0.44714]
[1759069742916,1.322,4023.8,4023.7,1.51934]
[1759069747616,1.322,4023.8,4023.7,1.22524]
[1759069747819,1.31973,4023.8,4023.5,0.90726]
[1759069748119,1.094,4023.6,4023.5,0.90726]
[1759069748417,1.094,4023.6,4023.5,0.7781]
[1759069748618,0.252,4023.8,4023.2,0.7781]
[1759069748619,1.094,4023.3,4023.2,0.7781]
[1759069748822,1.345,4023.3,4023.2,0.7781]
[1759069751616,1.345,4023.3,4023.2,4.2738]
[1759069753422,1.094,4023.3,4023.2,4.2738]
[1759069753624,1.345,4023.3,4023.2,4.2738]
[1759069756623,0.44721,4023.1,4022.9,0.4717]
[1759069756925,1.0635,4023.0,4022.9,0.7623]
[1759069757220,1.2533,4023.0,4022.9,0.7623]
[1759069758022,1.2533,4023.0,4022.9,1.20953]
[1759069759029,1.70052,4023.0,4022.9,1.20953]
[1759069759326,1.2533,4023.0,4022.9,1.20953]
[1759069759512,1.70052,4023.0,4022.9,1.20953]
[1759069760317,1.70052,4023.0,4022.9,0.7623]
[1759069760723,1.51074,4022.8,4022.7,3.9701]
[1759069760920,1.76174,4022.8,4022.7,3.2078]
[1759069761115,0.3094,4022.4,4022.3,0.4717]
[1759069761318,1.0635,4022.4,4022.3,0.4717]
[1759069761530,1.0635,4022.3,4022.2,3.6795]
[1759069761828,1.3145,4022.3,4022.2,3.2078]
[1759069762033,1.2533,4022.0,4021.9,0.4717]
[1759069762526,1.0635,4023.4,4023.3,1.0502]
[1759069762725,1.3145,4023.4,4023.3,1.0502]
[1759069766427,1.3145,4023.4,4023.1,3.2078]
[1759069766727,1.0541,4022.9,4022.8,0.7561]
[1759069767030,1.3061,4022.9,4022.8,0.7561]
[1759069767528,0.6217,4022.7,4022.6,0.7561]
[1759069767723,1.0541,4022.7,4022.6,0.7561]
[1759069769928,1.0541,4022.7,4022.6,1.043]
[1759069770226,1.3061,4022.7,4022.6,1.043]
[1759069774350,1.0541,4022.7,4022.6,1.043]
[1759069774650,1.3061,4022.7,4022.6,1.043]
[1759069775354,1.0541,4022.7,4022.6,1.043]
[1759069775546,1.3061,4022.7,4022.6,1.043]
[1759069776452,1.0541,4022.7,4022.6,1.043]
[1759069776750,0.8737,4022.7,4022.6,1.043]
[1759069776952,0.44722,4023.0,4022.5,3.83837]
[1759069776953,0.7512,4023.2,4023.1,1.49021]
[1759069777244,1.0032,4023.2,4023.1,1.49021]
[1759069777449,1.0541,4023.2,4023.1,1.49021]
[1759069777649,1.3061,4023.2,4023.1,1.49021]
[1759069780441,0.3188,4023.2,4023.1,1.49021]
[1759069780646,39.1078,4023.4,4023.3,1.49019]
[1759069780945,39.7922,4023.4,4023.3,1.49019]
[1759069781146,0.7512,4023.4,4023.3,1.49019]
[1759069781350,39.5402,4023.7,4023.6,1.043]
[1759069781655,40.0951,4023.7,4023.6,1.043]
[1759069782753,3.9761,4023.7,4023.6,1.043]
[1759069783954,1.3061,4023.7,4023.6,1.043]
[1759069785956,1.0541,4023.7,4023.6,1.043]
[1759069786255,1.3061,4023.7,4023.6,1.043]
[1759069788252,1.75324,4023.7,4023.6,1.043]
[1759069788752,1.75324,4023.7,4023.6,0.7561]
[1759069788954,1.50124,4023.7,4023.6,0.7561]
[1759069789150,1.75324,4023.7,4023.6,0.7561]
[1759069791957,1.3061,4023.7,4023.6,0.7561]
[1759069792155,1.3061,4023.7,4023.6,1.043]
[1759069792962,1.75324,4023.7,4023.6,1.043]
[1759069793657,1.3061,4023.7,4023.6,1.043]
[1759069793856,1.0541,4023.7,4023.6,1.043]
[1759069794051,1.3051,4023.7,4023.6,1.043]
[1759069794248,1.75224,4023.7,4023.6,1.043]
[1759069795765,1.3051,4023.7,4023.6,1.043]
[1759069796259,1.75224,4023.7,4023.6,1.043]
[1759069799359,1.3051,4023.7,4023.6,1.043]
[1759069799561,3.2078,4023.8,4023.7,1.49114]
[1759069799761,3.4588,4023.8,4023.7,1.49114]
[1759069800754,0.4656,4024.0,4023.9,1.044]
[1759069800953,1.833,4024.0,4023.9,1.044]
[1759069801854,0.2864,4024.0,4023.9,1.044]
[1759069802057,0.752,4024.2,4024.1,1.044]
[1759069802257,1.2922,4024.2,4024.1,1.044]
[1759069804267,0.5756,4023.2,4023.0,3.6774]
[1759069804562,1.2922,4023.1,4023.0,3.2078]
[1759069804759,0.5756,4022.8,4022.7,0.4696]
[1759069804968,11.0032,4022.8,4022.7,0.4696]
[1759069805163,1.0412,4022.8,4022.7,0.7601]
[1759069805364,1.2932,4022.8,4022.7,1.044]
[1759069805559,1.2932,4022.8,4022.7,0.7601]
[1759069805761,1.2932,4022.8,4022.7,1.044]
[1759069806166,0.44721,4023.1,4022.5,0.1753]
[1759069806167,39.0714,4023.1,4023.0,0.2905]
[1759069806368,40.0782,4023.1,4023.0,0.7601]
[1759069806663,40.0782,4023.1,4023.0,1.044]
[1759069806961,38.786,4023.4,4023.1,0.4696]
[1759069807167,39.0724,4023.4,4023.3,1.044]
[1759069807368,39.79,4023.4,4023.3,1.044]
[1759069807965,1.004,4023.4,4023.3,1.044]
[1759069808164,1.2932,4023.4,4023.3,1.044]
[1759069809472,1.2932,4023.4,4023.3,0.2905]
[1759069809764,1.0412,4023.4,4023.3,1.044]
[1759069809970,1.2922,4023.4,4023.3,1.044]
[1759069810166,0.5374,4023.4,4023.3,1.044]
[1759069810467,3.4942,4023.6,4023.5,1.2193]
[1759069810764,4.4883,4023.6,4023.5,1.044]
[1759069810968,4.4883,4023.6,4023.5,1.221]
[1759069811157,4.2373,4023.6,4023.5,1.221]
[1759069811362,4.4883,4023.6,4023.5,1.221]
[1759069811870,4.4883,4023.6,4023.5,0.7601]
[1759069812470,4.4883,4023.6,4023.3,0.44718]
[1759069812662,1.0358,4023.4,4023.3,0.74988]
[1759069812864,1.2868,4023.4,4023.3,1.03668]
[1759069813065,1.2868,4023.4,4023.3,1.45508]
[1759069816466,1.2868,4023.4,4023.1,0.4184]
[1759069816668,0.4539,4023.3,4023.1,0.4472]
[1759069816868,0.1814,4023.0,4022.9,3.2078]
[1759069817067,1.4682,4023.0,4022.9,3.2078]
[1759069817461,1.4682,4023.0,4022.9,3.6262]
[1759069817769,1.4682,4023.0,4022.9,3.2078]
[1759069818666,1.4682,4023.0,4022.9,3.9289]
[1759069818866,1.0358,4023.0,4022.9,4.2157]
[1759069819069,1.2868,4023.0,4022.9,4.2157]
[1759069820273,1.4682,4023.0,4022.9,3.2078]
[1759069820474,1.4682,4023.0,4022.6,0.86566]
[1759069820475,0.5819,4022.7,4022.6,0.86566]
[1759069820668,1.2868,4022.7,4022.6,0.4184]
[1759069820875,1.66448,4022.5,4022.1,0.4184]
[1759069821070,1.0358,4022.2,4022.1,0.7211]
[1759069821269,1.77955031,4022.2,4022.1,0.7211]
[1759069821879,1.77955031,4022.2,4022.1,1.0079]
[1759069823569,1.77955031,4022.2,4021.9,3.65514]
[1759069823769,1.50855031,4022.1,4022.0,1.18113]
[1759069824485,1.75955031,4022.1,4022.0,1.18113]
[1759069824976,1.04545031,4022.1,4022.0,1.64643]
[1759069825878,1.04645031,4022.1,4022.0,1.64643]
[1759069826073,1.48405031,4022.1,4022.0,1.64643]
[1759069826274,1.76055031,4022.1,4022.0,1.64643]
[1759069827180,1.50855031,4022.1,4022.0,1.64643]
[1759069827383,1.76055031,4022.1,4022.0,1.64643]
[1759069829677,1.04645031,4022.1,4022.0,1.64643]
[1759069830177,0.79445031,4022.1,4022.0,1.64643]
[1759069830381,1.04645031,4022.1,4022.0,1.64643]
[1759069831282,1.48405031,4022.1,4022.0,1.64643]
[1759069831484,0.79445031,4022.1,4022.0,1.64643]
[1759069831788,0.74475031,4022.1,4022.0,1.64643]
[1759069832287,1.04645031,4022.1,4022.0,1.64643]
[1759069832484,1.48405031,4022.1,4022.0,1.64643]
[1759069832691,1.76055031,4022.1,4022.0,1.46463]
[1759069834087,1.76055031,4022.1,4022.0,0.7338]
[1759069834786,1.76055031,4022.1,4022.0,1.18113]
[1759069837292,1.76055031,4022.1,4022.0,0.88863]
[1759069837488,0.7477,4022.0,4021.9,3.65514]
[1759069837789,1.67805031,4022.0,4021.9,3.2078]
[1759069837987,12.13538031,4022.0,4021.9,3.2078]
[1759069839793,12.13538031,4022.0,4021.7,0.00314731]
[1759069839989,0.44742,4021.2,4020.9,3.2078]
[1759069840192,1.1853,4021.0,4020.9,3.2078]
[1759069840397,1.67805031,4021.0,4020.9,3.6491]
[1759069841091,1.68099078,4021.0,4020.9,3.21025913]
[1759069842995,0.49569078,4021.0,4020.9,4.22755913]
[1759069843200,0.49569078,4021.0,4020.9,9.22755913]
[1759069843402,0.25494047,4021.0,4020.9,9.22755913]
[1759069843597,0.25494047,4021.0,4020.9,4.22755913]
[1759069843904,1.27074047,4021.0,4020.9,4.22755913]
[1759069844098,1.51178588,4021.0,4020.9,4.22755913]
[1759069844505,1.76378588,4021.0,4020.9,4.22755913]
[1759069846903,1.93328588,4021.0,4020.9,3.94405913]
[1759069847098,1.93328588,4021.0,4020.9,3.21025913]
[1759069847306,49.56528588,4021.0,4020.9,0.00245913]
[1759069847501,1.68128588,4021.0,4020.9,0.73625913]
[1759069847707,41.65578588,4021.0,4020.9,1.01975913]
[1759069848103,2.85378588,4021.0,4020.9,1.01975913]
[1759069848401,1.76378588,4021.0,4020.9,1.01975913]
[1759069848595,7.40378588,4021.0,4020.9,1.01975913]
[1759069848799,7.57328588,4021.0,4020.9,0.00245913]
[1759069849001,7.57328588,4021.0,4020.9,0.44375913]
[1759069849398,7.57328588,4021.0,4020.9,0.00245913]
[1759069850108,7.32128588,4021.0,4020.9,0.00245913]
[1759069850408,46.37728588,4021.0,4020.9,0.00245913]
[1759069855213,40.57078588,4021.0,4020.9,1.03625913]
[1759069855912,50.67858588,4021.0,4020.9,0.00245913]
[1759069858114,50.67858588,4021.0,4020.6,0.44748]
[1759069858115,0.4475,4020.5,4020.1,0.89924]
[1759069858309,0.9983,4020.2,4020.1,1.18064]
[1759069858617,0.9983,4020.2,4020.1,1.48134]
[1759069858618,1.74334541,4020.2,4020.1,1.48134]
[1759069859314,1.74334541,4020.2,4020.1,1.48346737]
[1759069860217,1.74334541,4020.2,4020.1,1.03592737]
[1759069860812,0.49304541,4020.2,4020.1,1.03592737]
[1759069861018,38.81,4020.6,4020.5,0.7584]
[1759069861311,0.74511181,4020.6,4020.5,1.2101]
[1759069863212,1.02921181,4020.6,4020.5,1.2101]
[1759069863418,1.74341181,4020.6,4020.5,1.2101]
[1759069863922,1.02921181,4020.6,4020.5,1.2101]
[1759069864306,1.32011181,4020.6,4020.5,1.2101]
[1759069864518,1.74341181,4020.6,4020.5,1.0338]
[1759069865011,1.49141181,4020.6,4020.5,1.0338]
[1759069865217,1.74341181,4020.6,4020.5,1.2101]
[1759069866413,1.74341181,4020.6,4020.1,0.00212737]
[1759069866414,1.02253,4020.2,4020.1,0.00212737]
[1759069866623,0.9983,4019.8,4019.7,0.7331]
[1759069866826,0.49311181,4019.8,4019.7,1.0338]
[1759069867013,0.74511181,4019.8,4019.7,1.0338]
[1759069867319,4.2061,4020.2,4020.1,1.0338]
[1759069867518,4.95253255,4020.2,4020.1,1.03694576]
[1759069869722,3.70223255,4020.2,4020.1,1.03694576]
[1759069869926,3.95423255,4020.2,4020.1,1.03694576]
[1759069870108,4.23833255,4020.2,4020.1,1.03694576]
[1759069870912,3.98633255,4020.2,4020.1,1.03694576]
[1759069871114,0.74643255,4020.2,4020.1,1.03694576]
[1759069872820,0.49443255,4020.2,4020.1,1.03694576]
[1759069873022,0.74643255,4020.2,4020.1,1.03694576]
[1759069875819,0.39829773,4020.2,4020.1,6.03694576]
[1759069876017,0.2971,4020.9,4020.8,0.86816]
[1759069876325,0.5491,4020.9,4020.8,1.41046]
[1759069876528,0.00294047,4021.0,4020.8,1.41046]
[1759069876718,0.00294047,4021.0,4020.9,0.963]
[1759069876918,0.25494047,4021.0,4020.9,0.963]
[1759069877417,0.00294047,4021.0,4020.9,4.1708]
[1759069877621,0.25494047,4021.0,4020.9,4.1708]
[1759069879418,0.00294047,4021.0,4020.9,4.1708]
[1759069879618,0.25494047,4021.0,4020.9,4.1708]
[1759069880222,0.84774047,4021.0,4020.9,4.1708]
[1759069880427,1.25094047,4021.0,4020.9,4.1708]
[1759069881125,1.25094047,4021.0,4020.9,0.963]
[1759069882127,0.99894047,4021.0,4020.9,0.963]
[1759069882324,0.25494047,4021.0,4020.9,0.963]
[1759069882523,0.55204047,4021.0,4020.9,0.963]
[1759069882921,0.00294047,4021.0,4020.9,0.963]
[1759069883230,0.996,4022.8,4022.7,0.6919]
[1759069883417,0.996,4022.8,4022.7,0.963]
[1759069883623,1.248,4022.8,4022.7,0.963]
[1759069883926,0.5928,4022.8,4022.7,0.963]
[1759069884126,0.25448947,4022.8,4022.7,0.963]
[1759069884328,0.52958947,4022.8,4022.7,0.963]
[1759069885025,0.27758947,4022.8,4022.7,0.963]
[1759069885330,1.23438947,4022.8,4022.7,0.963]
[1759069887034,0.56058947,4022.8,4022.7,0.963]
[1759069887226,0.81258947,4022.8,4022.7,0.963]
[1759069888125,1.30407542,4022.8,4022.7,0.963]
[1759069888327,1.23438947,4022.8,4022.7,0.963]
[1759069896639,0.27758947,4022.8,4022.7,0.963]
[1759069896836,0.52958947,4022.8,4022.7,0.963]
[1759069897337,1.23438947,4022.8,4022.7,0.963]
[1759069898237,1.23438947,4022.8,4022.7,1.41025]
[1759069900033,0.4218,4022.7,4022.2,3.2078]
[1759069900238,0.6969,4022.5,4022.4,0.98469]
[1759069900637,0.6969,4022.5,4022.4,1.41869]
[1759069901031,0.9799,4022.5,4022.4,1.41869]
[1759069901333,0.4218,4022.4,4022.3,0.7043]
[1759069901536,0.9799,4022.4,4022.3,0.7043]
[1759069901728,0.9799,4022.4,4022.3,0.2703]
[1759069901929,0.9799,4022.3,4022.2,3.2078]
[1759069902130,1.72332632,4022.3,4022.2,3.2078]
[1759069903038,1.72332632,4022.3,4022.2,3.6418]
[1759069904240,1.72332632,4022.3,4022.2,3.9121]
[1759069904641,1.72332632,4022.3,4022.2,3.2078]
[1759069905334,1.72332632,4022.3,4022.2,3.9121]
[1759069906443,1.72332632,4022.3,4022.2,0.7043]
[1759069908643,0.2751,4021.9,4021.8,1.41875]
[1759069908840,1.01852632,4021.9,4021.8,1.41875]
[1759069909150,1.44032632,4021.9,4021.8,1.41875]
[1759069909443,1.01852632,4021.9,4021.8,1.41875]
[1759069911341,1.88766632,4021.9,4021.8,0.9714]
[1759069911748,1.88766632,4021.9,4021.8,1.41875]
[1759069911944,1.88766632,4021.9,4021.8,0.9714]
[1759069912150,2.17066632,4021.9,4021.8,0.9714]
[1759069913648,1.72332632,4021.9,4021.8,0.9714]
[1759069913943,1.01852632,4021.9,4021.8,0.9714]
[1759069914145,0.49142632,4021.9,4021.8,0.9714]
[1759069914453,3.2078,4022.6,4021.7,3.65516]
[1759069914454,3.65506,4022.6,4022.5,0.1608]
[1759069914647,5.37025159,4022.6,4022.5,1.1599]
[1759069914849,4.92299159,4022.6,4022.5,1.1599]
[1759069915841,4.92299159,4022.6,4022.5,0.7119]
[1759069916046,4.92299159,4022.6,4022.5,0.442]
[1759069916547,4.92299159,4022.6,4022.1,0.44731]
[1759069916548,11.66246159,4022.6,4022.1,0.44731]
[1759069916744,0.9693,4022.3,4022.2,0.7119]
[1759069917050,1.71519159,4022.3,4022.2,0.7119]
[1759069917852,1.71519159,4022.3,4022.1,0.44731]
[1759069918047,1.46319159,4022.2,4022.1,1.15921]
[1759069918450,1.46319159,4022.2,4022.1,1.44641]
[1759069920152,0.49389159,4022.2,4022.1,1.44641]
[1759069920354,38.796,4022.7,4022.4,0.44728]
[1759069920549,0.9693,4022.5,4022.4,1.44638]
[1759069920753,1.46325849,4022.5,4022.4,1.44638]
[1759069921055,1.62495849,4022.5,4022.1,0.442]
[1759069921351,1.43285849,4022.4,4022.3,1.0044]
[1759069921553,1.43285849,4022.4,4022.3,1.4464]
[1759069921853,1.71525849,4022.4,4022.3,1.4464]
[1759069922255,1.30445849,4022.4,4022.3,1.4464]
[1759069922644,1.71525849,4022.4,4022.3,1.4464]
[1759069925550,1.46325849,4022.4,4022.3,1.4464]
[1759069925751,1.30445849,4022.4,4022.3,1.4464]
[1759069926255,1.02205849,4022.4,4022.3,1.4464]
[1759069928556,1.46325849,4022.4,4022.3,1.4464]
[1759069928756,1.71525849,4022.4,4022.3,1.4464]
[1759069937156,1.71525849,4022.4,4022.3,0.9991]
[1759069937456,1.71525849,4022.4,4021.7,3.2078]
[1759069937457,0.283,4021.9,4021.8,1.11455]
[1759069937665,1.2042,4021.9,4021.8,1.11455]
[1759069937857,1.69815849,4021.9,4021.8,1.11455]
[1759069938560,1.69815849,4021.9,4021.8,0.44735]
[1759069939463,10.72815849,4021.9,4021.7,0.84756]
[1759069939657,1.44615849,4021.8,4021.7,0.84756]
[1759069939864,10.47615849,4021.8,4021.7,0.84756]
[1759069940459,10.47615849,4021.8,4021.6,0.44737]
[1759069940764,0.9522,4021.3,4021.2,4.32242]
[1759069940963,1.69815849,4021.3,4021.2,4.32242]
[1759069941366,1.69815849,4021.3,4021.2,4.60822]
[1759069945969,0.77695849,4021.3,4021.2,4.60822]
[1759069946174,0.74595849,4021.3,4021.2,4.60822]
[1759069947576,0.49395849,4021.3,4021.2,4.60822]
[1759069947769,0.74595849,4021.3,4021.2,4.60822]
[1759069949670,0.49395849,4021.3,4021.2,4.60822]
[1759069949877,0.74595849,4021.3,4021.2,4.60822]
[1759069950783,1.68675849,4021.3,4021.2,4.60822]
[1759069954679,2.07675849,4021.3,4021.2,3.608]
[1759069954881,0.9408,4020.8,4020.7,4.32688]
[1759069955082,1.68675849,4020.8,4020.7,3.8794]
[1759069956583,1.68675849,4020.8,4020.7,4.1435]
[1759069958283,0.74595849,4020.8,4020.7,4.1435]
[1759069958784,0.49395849,4020.8,4020.7,4.1435]
[1759069959083,0.74595849,4020.8,4020.7,4.1435]
[1759069959986,0.74435862,4020.8,4020.7,4.1435]
[1759069962988,0.49235862,4020.8,4020.7,4.1435]
[1759069963192,0.74435862,4020.8,4020.7,4.1435]
[1759069967784,0.74435862,4020.8,4020.7,4.59098]
[1759069971698,0.49235862,4020.8,4020.7,4.59098]
[1759069971988,0.74435862,4020.8,4020.7,4.59098]
[1759069973693,0.49235862,4020.8,4020.7,4.59098]
[1759069973886,0.74435862,4020.8,4020.7,4.59098]
[1759069975694,0.49235862,4020.8,4020.7,4.59098]
[1759069976392,0.49235862,4020.8,4020.7,9.59098]
[1759069978993,0.2745,4022.0,4021.9,1.38654]
[1759069979192,3.2078,4022.1,4022.0,1.1023]
[1759069979396,0.252,4022.1,4022.0,4.3101]
[1759069980984,0.8391,4022.3,4022.0,4.3101]
[1759069981186,0.5265,4022.2,4022.1,0.9392]
[1759069981393,0.9183,4022.2,4022.1,0.9392]
[1759069981596,1.1737,4022.2,4022.1,0.9392]
[1759069986192,1.1727,4022.2,4022.1,0.9392]
[1759069987299,1.36902,4022.1,4022.0,3.2078]
[1759069988003,1.36902,4022.1,4022.0,3.8871]
[1759069988508,0.9217,4022.1,4022.0,4.59433]
[1759069988702,0.9217,4022.1,4022.0,4.75743]
[1759069989601,1.36899,4022.4,4022.3,0.9392]
[1759069989799,1.92999,4022.4,4022.3,0.9392]
[1759069991096,6.93999,4022.4,4022.3,0.9392]
[1759069992500,6.68899,4022.4,4022.3,0.9392]
[1759069992701,1.35521,4022.2,4022.1,0.6721]
[1759069993203,1.60621,4022.2,4022.1,0.6721]
[1759069994097,0.5218,4021.8,4021.7,0.4162]
[1759069994296,0.5218,4021.8,4021.5,3.81827]
[1759069994297,9.8628,4021.8,4021.6,0.4162]
[1759069994497,0.5218,4021.7,4021.5,3.624]
[1759069994692,1.35527,4021.6,4021.5,3.2078]
[1759069994897,10.00527,4021.6,4021.5,3.2078]
[1759069996508,0.9079,4021.1,4021.0,3.624]
[1759069996806,1.1589,4021.1,4021.0,3.2078]
[1759069997518,1.6526176,4021.1,4021.0,3.2078]
[1759069997807,1.6526176,4021.1,4021.0,3.624]
[1759069998193,0.2625,4020.7,4020.6,0.44748]
[1759069998403,1.3933176,4020.7,4020.6,1.37258]
[1759069998604,1.3933176,4020.7,4020.6,0.9251]
[1759069998805,1.6526176,4020.7,4020.6,0.9251]
[1759070000902,0.44749,4020.6,4020.5,3.2078]
[1759070001106,1.8491076,4020.6,4020.5,3.2078]
[1759070001301,1.8491076,4020.6,4020.5,3.624]
[1759070001503,1.8491076,4020.6,4020.5,3.8799]
[1759070002205,1.8491076,4020.6,4020.5,3.2078]
[1759070003107,1.8491076,4020.6,4020.5,3.624]
[1759070003706,1.6526176,4020.6,4020.5,3.8799]
[1759070003910,1.4016176,4020.6,4020.5,4.1388]
[1759070004213,1.6526176,4020.6,4020.5,4.2975]
[1759070009409,0.4937176,4020.6,4020.5,4.2975]
[1759070009709,0.44744,4021.0,4020.9,0.9389]
[1759070010016,0.74426401,4021.0,4020.9,0.9389]
[1759070010206,0.49326401,4021.0,4020.9,0.9389]
[1759070010511,0.74426401,4021.0,4020.9,5.9389]
[1759070011806,0.49326401,4021.0,4020.9,5.9389]
[1759070012012,0.70654,4021.9,4021.8,0.9389]
[1759070012211,1.36604,4021.9,4021.8,0.9389]
[1759070012417,1.63364,4021.9,4021.8,0.9389]
[1759070014016,1.63364,4021.9,4021.5,0.60608]
[1759070014316,0.9353,4021.8,4021.7,0.68]
[1759070017118,0.9353,4021.8,4021.7,0.9389]
[1759070019612,0.2592,4021.9,4021.8,1.38625]
[1759070019920,0.9187,4021.9,4021.8,1.38625]
[1759070020621,1.1863,4021.9,4021.8,1.38625]
[1759070020821,1.1863,4021.9,4021.8,0.9389]
[1759070024016,1.6790563,4021.9,4021.8,0.9389]
[1759070024214,0.7519563,4021.9,4021.8,0.9389]